Cogmind - Beta 16.1 --- EXPLORER MODE // 2026.02.28 @ 11:28:23 Player: NeoBioHazard Result: Escaped! Performance ------------- Evolutions (9) 4500 Regions Visited (12) 2400 Robots Destroyed (69) 345 Value Destroyed (2845) 2845 Prototype IDs (14) 280 Alien Tech Used (0) 0 Bonus (5368) 5368 TOTAL SCORE: 15738 Bonus ------- Entered DSFs 500 Win 3000 Win Speed 1868 Cogmind --------- Core Integrity 1600/1600 Matter 225/300 Energy 442/500 System Corruption 0% Temperature Warning (312) Movement Flying (29) Location To Epsilon Eridani Parts ------- > --- POWER (4) -------- Enhanced Nuclear Core Micro Fission Core Light Antimatter Reactor Light Particle Reactor > --- PROPULSION (10) -- Nuclear Pulse Thruster Field Propulsion Drive Nuclear Pulse Array Impulse Thruster Field Propulsion Array Field Propulsion Array > --- UTILITY (10) ----- Advanced Heat Sink Advanced Gravity Neutralizer Experimental Optical Array Advanced Sensor Array Advanced Signal Interpreter Advanced Melee Analysis Suite Advanced ECM Suite Cloaking Device Hardened Medium Armor Plating Improved System Shield > --- WEAPON (2) ------- Enhanced Force Lance Enhanced Force Lance > --- INVENTORY (5) ---- Field Propulsion Array Advanced Power Amplifier Gamma Bomb Array Improved Plasma Cutter Peak State ------------ > --- POWER ------------ Enhanced Nuclear Core Micro Fission Core Light Antimatter Reactor Light Particle Reactor > --- PROPULSION ------- Nuclear Pulse Thruster Field Propulsion Drive Field Propulsion Drive Nuclear Pulse Array Impulse Thruster Field Propulsion Array Field Propulsion Array > --- UTILITY ---------- Advanced Heat Sink Advanced Gravity Neutralizer Experimental Optical Array Advanced Sensor Array Advanced Signal Interpreter Advanced Melee Analysis Suite Advanced ECM Suite Cloaking Device Hardened Medium Armor Plating Improved System Shield > --- WEAPON ----------- Enhanced Force Lance Enhanced Force Lance > --- INVENTORY -------- Field Propulsion Array Advanced Power Amplifier Gamma Bomb Array Improved Plasma Cutter [Rating: 162] Favorites ----------- Power Micro Fission Core Engine Angular Momentum Engine Power Core Micro Fission Core Reactor Light Antimatter Reactor Propulsion Improved Carbon-fiber Leg Treads Light Treads Leg Improved Carbon-fiber Leg Flight Unit Cesium-ion Thruster Utility Targeting Computer Device Cooling System Storage Medium Storage Unit Processor Targeting Computer Hackware Improved System Shield Protection Insulated Plating Weapon Heavy Ion Cannon Energy Gun Beam Rifle Energy Cannon Heavy Ion Cannon Ballistic Gun Assault Rifle Piercing Weapon Enhanced Force Lance Build | -11 -10 -9 -8 -7 -6 -5 -5 -4 -3 -3 -2 -1 ------- Run | Yrd Mat Mat Mat Fac Fac Fac Ext Fac Res DSF Res Acc Slots Evolved 19 | . 1 2 2 2 2 2 . 2 2 . 2 2 Power 3 | . . . . . . 1 . . 1 . . 1 Propulsion 8 | . . . 2 . 1 1 . 2 . . 2 . Utility 8 | . 1 2 . 2 1 . . . 1 . . 1 Weapon . | . . . . . . . . . . . . . Parts Attached 87 | 9 1 6 6 11 14 23 . 5 2 . 3 7 Power 11 | 1 . . 1 1 2 2 . 1 1 . . 2 Engine 5 | 1 . . 1 1 2 . . . . . . . Core 4 | . . . . . . 2 . 1 1 . . . Reactor 2 | . . . . . . . . . . . . 2 Propulsion 29 | 4 . . 2 5 3 9 . 3 . . 1 2 Treads 2 | 2 . . . . . . . . . . . . Leg 16 | 2 . . 2 5 3 4 . . . . . . Wheel . | . . . . . . . . . . . . . Hover . | . . . . . . . . . . . . . Flight 11 | . . . . . . 5 . 3 . . 1 2 Utility 28 | 2 1 2 . 2 6 9 . 1 . . 2 3 Device 15 | . . 2 . 1 5 5 . . . . . 2 Storage 2 | . 1 . . . . 1 . . . . . . Processor 7 | 2 . . . . 1 2 . . . . 1 1 Hackware 1 | . . . . . . . . 1 . . . . Protection 3 | . . . . 1 . 1 . . . . 1 . Artifact . | . . . . . . . . . . . . . Weapon 19 | 2 . 4 3 3 3 3 . . 1 . . . Energy Gun 7 | 1 . 2 3 1 . . . . . . . . Energy Cannon 9 | . . 2 . 2 3 2 . . . . . . Ballistic Gun 1 | 1 . . . . . . . . . . . . Ballistic Cannon . | . . . . . . . . . . . . . Launcher . | . . . . . . . . . . . . . Special Weapon . | . . . . . . . . . . . . . Impact Weapon . | . . . . . . . . . . . . . Slashing Weapon . | . . . . . . . . . . . . . Piercing Weapon 2 | . . . . . . 1 . . 1 . . . Special Melee Weapon . | . . . . . . . . . . . . . Unidentified Prototypes 6 | . . . . 2 1 1 . . . . 1 1 Parts Lost 2 | . . . . . 1 . . . . . . 1 Power . | . . . . . . . . . . . . . Propulsion 1 | . . . . . . . . . . . . 1 Utility 1 | . . . . . 1 . . . . . . . Weapon . | . . . . . . . . . . . . . Highest Loss Streak 1 | . . . . . 1 . . . . . . 1 To Critical Strikes . | . . . . . . . . . . . . . Average Backups 8 | 1 4 9 10 9 10 9 1 3 4 4 3 3 Power . | . 1 . . . 1 . . . . . . . Propulsion 3 | . . 3 4 4 4 3 . 1 2 2 1 1 Utility . | . . . . . . 1 . . . . . . Weapon 3 | . 2 4 4 3 3 2 1 1 1 1 1 1 Tool/Special . | . . . . . . . . . . . . . Unused Backups 14 | . . 1 1 2 5 1 . . . . . 4 Power 2 | . . 1 . . 1 . . . . . . . Propulsion 1 | . . . . . . . . . . . . 1 Utility 2 | . . . . 1 . . . . . . . 1 Weapon 7 | . . . 1 1 3 1 . . . . . 1 Tool/Special 2 | . . . . . 1 . . . . . . 1 Average Slot Usage (%) 92 | . 93 94 90 91 95 96 88 84 84 86 89 87 Engine 5 | . 12 10 8 7 6 4 . . . . . . Core 2 | . . . . . . 4 11 10 13 13 12 8 Leg 22 | . 25 20 24 28 30 28 . . . . . . Flight 4 | . . . . . . 2 27 29 27 27 32 27 Device 17 | . . 14 16 14 20 21 22 20 18 18 16 17 Storage 5 | . 6 10 8 7 6 4 . . . . . . Processor 15 | . 25 20 16 14 14 15 16 12 9 9 11 11 Protection 2 | . . . . 5 3 . 5 5 4 4 4 3 Energy Gun 2 | . 12 9 2 6 . . . . . . . . Energy Cannon 8 | . . 8 13 7 12 9 . . . . . . Piercing Weapon 1 | . . . . . . . 5 5 7 9 8 7 Peak Build Rating 162 | 7 8 15 22 46 65 84 72 97 111 111 129 162 Average Rating 54 | 5 7 12 17 35 56 77 72 92 110 111 126 149 On Entrance 57 | . 7 8 13 22 46 65 72 72 97 111 111 129 Avg Prop Armor Cover (%) 3 | . . . . . . . . . . . . 3 Naked Turns . | . . . . . . . . . . . . . Heaviest Build 69 | 6 16 22 28 41 49 55 30 30 43 43 48 69 Greatest Support 117 | 40 20 20 48 74 92 117 33 51 51 51 63 86 Greatest Overweight (x) 1 | . . 1 1 . . . . . . . . . Average Overweight (x) . | . . . . . . . . . . . . . Largest Inventory Capacity 10 | 5 10 10 10 10 10 10 5 5 5 5 5 5 Average Capacity 8 | 5 7 10 10 10 10 9 5 5 5 5 5 5 Most Carried 10 | 3 6 10 10 10 10 10 1 5 4 4 4 5 Average Carried 8 | 1 4 9 10 9 9 9 1 3 3 4 3 4 Final Capacity 10 | 5 10 10 10 10 10 5 5 5 5 5 5 5 Final Carried 10 | 3 6 10 10 10 10 1 1 5 4 4 4 5 Class Distribution -------------------- 83% | Hacker-Mutant 13% | Hacker-Ninja 3% | Hacker-Sprinter Dominant Class ---------------- Hacker-Mutant | -10/Materials Hacker-Mutant | -9/Materials Hacker-Mutant | -8/Materials Hacker-Mutant | -7/Factory Hacker-Mutant | -6/Factory Hacker-Mutant | -5/Factory Hacker-Ninja | -5/Extension Hacker-Sprinter | -4/Factory Hacker-Sprinter | -3/Research Hacker-Sprinter | -3/DSF Hacker-Ninja | -2/Research Hacker-Ninja | -1/Access Resources | -11 -10 -9 -8 -7 -6 -5 -5 -4 -3 -3 -2 -1 ----------- Run | Yrd Mat Mat Mat Fac Fac Fac Ext Fac Res DSF Res Acc Matter Collected 1076 | 186 123 90 20 150 152 100 . 131 62 . 52 10 Remotely . | . . . . . . . . . . . . . Salvage Created 3115 | . 47 244 603 274 926 913 . . . 27 . 81 Parts 126 | . 7 11 19 12 33 34 . . . 4 . 6 Haulers Intercepted 3 | . . . . 1 . 2 . . . . . . Recyclers Shooed . | . . . . . . . . . . . . . Parts Field Recycled . | . . . . . . . . . . . . . Retrieved Matter . | . . . . . . . . . . . . . Parts Self-Destructed . | . . . . . . . . . . . . . Prevented . | . . . . . . . . . . . . . Parts Restored . | . . . . . . . . . . . . . Kills | -11 -10 -9 -8 -7 -6 -5 -5 -4 -3 -3 -2 -1 ------- Run | Yrd Mat Mat Mat Fac Fac Fac Ext Fac Res DSF Res Acc Combat Hostiles Destroyed 54 | . 2 4 12 5 15 15 . . . 1 . . Melee 1 | . . . . . . . . . . 1 . . Guns 7 | . 2 4 . 1 . . . . . . . . Cannons 38 | . . . 10 4 12 12 . . . . . . AOE 1 | . . . . . 1 . . . . . . . Classes Destroyed 12 | . 2 5 . 1 2 1 . . . 1 . . Worker 2 | . . 1 . . . 1 . . . . . . Hauler 3 | . . . . 1 . 2 . . . . . . Operator 2 | . . 1 . . 1 . . . . . . . Watcher 8 | . 1 1 3 . 1 . . . . . . 2 Swarmer 14 | . 2 . 3 2 . 7 . . . . . . Cutter 1 | . . . . . . . . . . 1 . . Grunt 24 | . . 1 9 2 10 2 . . . . . . Duelist 2 | . . 1 . . 1 . . . . . . . Sentry 5 | . . 2 . 1 1 1 . . . . . . Hunter 1 | . . . . . 1 . . . . . . . Programmer 6 | . . . . . 2 4 . . . . . . Behemoth 1 | . . . . . . 1 . . . . . . Best Kill Streak 6 | . 3 2 6 3 5 5 . . . 1 . 2 Combat Bots Only 6 | . 2 2 6 2 5 4 . . . 1 . . Max Kills in Single Turn 2 | . 2 2 1 1 1 1 . . . 1 . 1 Gunslinging 1 | . 1 . . . . . . . . . . . Exploded 1 | . . . . . 1 . . . . . . . Melee 1 | . . . . . . . . . . 1 . . Uniques/NPCs Destroyed . | . . . . . . . . . . . . . Combat | -11 -10 -9 -8 -7 -6 -5 -5 -4 -3 -3 -2 -1 -------- Run | Yrd Mat Mat Mat Fac Fac Fac Ext Fac Res DSF Res Acc Hostile Shots Fired 319 | . 3 17 78 35 71 71 7 6 1 4 . 26 Missed 114 | . 2 5 20 10 25 24 6 5 1 . . 16 Hits 205 | . 1 12 58 25 46 47 1 1 . 4 . 10 Melee 5 | . . 1 . . . . . . . 4 . . Projectile 200 | . 1 11 58 25 46 47 1 1 . . . 10 Critical Strikes 6 | . . . 3 . 2 1 . . . . . . Damage Taken 2360 | . 3 115 509 296 633 567 16 14 . 59 . 148 Core 246 | . . 18 97 . 69 62 . . . . . . Absorbed by Shields . | . . . . . . . . . . . . . Ignored by Resistances 1419 | . 3 73 317 177 372 339 9 9 . 36 . 84 Core Remaining (%) 96 | 100 100 95 82 100 91 . 93 100 . 100 100 100 Volleys Fired 171 | . 3 21 46 16 41 44 . . . . . . Largest 2 | . 2 2 2 2 2 2 . . . . . . Hottest 180 | . 60 120 120 130 175 180 . . . . . . Shots Fired 342 | . 6 42 92 32 82 88 . . . . . . Gun 54 | . 6 36 8 4 . . . . . . . . Cannon 288 | . . 6 84 28 82 88 . . . . . . Launcher . | . . . . . . . . . . . . . Special . | . . . . . . . . . . . . . Kinetic 13 | . 3 10 . . . . . . . . . . Thermal 329 | . 3 32 92 32 82 88 . . . . . . Explosive . | . . . . . . . . . . . . . Electromagnetic . | . . . . . . . . . . . . . Robot Hit Streak 33 | . 5 13 33 23 30 24 . . . . . . Robot Miss Streak 2 | . . 1 2 1 1 2 . . . . . . Penetration Max . | . . . . . . . . . . . . . Secondary Targets 1 | . 1 . . . . . . . . . . . Max Gunslinging Chain 1 | . 1 . . . . . . . . . . . Shots Hit Robots 265 | . 5 29 77 27 66 57 . 1 . 1 . 2 Core Hits 115 | . 4 13 29 12 29 24 . 1 . 1 . 2 Critical Kills 6 | . . . 2 . 2 2 . . . . . . Critical Parts Destroyed . | . . . . . . . . . . . . . Critical Strikes 9 | . . 1 3 . 2 2 . . . . . 1 Burn 2 | . . 1 1 . . . . . . . . . Meltdown 6 | . . . 2 . 2 2 . . . . . . Impale 1 | . . . . . . . . . . . . 1 Melee Attacks 66 | . . . . . . 5 1 15 4 1 . 40 Impact . | . . . . . . . . . . . . . Slashing . | . . . . . . . . . . . . . Piercing 66 | . . . . . . 5 1 15 4 1 . 40 Sneak Attacks 1 | . . . . . . . . . . . . 1 Combat Hostiles . | . . . . . . . . . . . . . Follow-up Attacks . | . . . . . . . . . . . . . Damage Inflicted 7459 | . 57 401 1329 690 2621 2054 . 42 . 49 . 216 Guns 586 | . 57 365 101 63 . . . . . . . . Cannons 5910 | . . 36 1228 627 2028 1991 . . . . . . Explosions 593 | . . . . . 593 . . . . . . . Melee 370 | . . . . . . 63 . 42 . 49 . 216 Ramming . | . . . . . . . . . . . . . Kinetic 141 | . 35 106 . . . . . . . . . . Thermal 6948 | . 22 295 1329 690 2621 1991 . . . . . . Explosive . | . . . . . . . . . . . . . Electromagnetic . | . . . . . . . . . . . . . Impact . | . . . . . . . . . . . . . Slashing . | . . . . . . . . . . . . . Piercing 370 | . . . . . . 63 . 42 . 49 . 216 Highest Corruption 2 | . . . . . 2 2 2 . . . . . Average Corruption 1 | . . . . . 2 1 2 . . . . . Corruption Purged . | . . . . . . . . . . . . . Corruption Blocked . | . . . . . . . . . . . . . Effects 7 | . . . . . 3 3 1 . . . . . Message Errors 1 | . . . . . . 1 . . . . . . Matter Fused 2 | . . . . . 1 . 1 . . . . . Heat Flow Errors 2 | . . . . . 1 1 . . . . . . Energy Discharges 1 | . . . . . 1 . . . . . . . Data Loss (minor) 1 | . . . . . . 1 . . . . . . Overload Shots . | . . . . . . . . . . . . . Overflow Damage 144 | . . . 6 . 87 51 . . . . . . Projectiles 55 | . . . 6 . 11 38 . . . . . . Explosions 76 | . . . . . 76 . . . . . . . Melee 13 | . . . . . . 13 . . . . . . Knockbacks . | . . . . . . . . . . . . . Impact . | . . . . . . . . . . . . . Kinetic . | . . . . . . . . . . . . . Secondary . | . . . . . . . . . . . . . Self-Inflicted Damage 119 | . . . . . 119 . . . . . . . Shots 2 | . . . . . 2 . . . . . . . Rammed . | . . . . . . . . . . . . . Targets Rammed . | . . . . . . . . . . . . . Kicked . | . . . . . . . . . . . . . Crushed . | . . . . . . . . . . . . . Highest Temperature 307 | . . 3 10 . 194 192 . . 2 . 137 307 Average Temperature 71 | . . 1 8 . 36 87 . . 2 . 61 83 Received Heat Transfer 1133 | . . 60 414 63 261 281 . 9 . . . 45 Effects 2 | . . . . . . . . . . . . 2 Energy Bleed 1 | . . . . . . . . . . . . 1 Short Circuit 1 | . . . . . . . . . . . . 1 Siege Activations . | . . . . . . . . . . . . . Martial Activations . | . . . . . . . . . . . . . Shielding Activations . | . . . . . . . . . . . . . Robots Disrupted . | . . . . . . . . . . . . . Combat Hostiles . | . . . . . . . . . . . . . Robots Corrupted . | . . . . . . . . . . . . . Combat Hostiles . | . . . . . . . . . . . . . Parts Fried . | . . . . . . . . . . . . . Impact Corruptions . | . . . . . . . . . . . . . Robots Melted 7 | . . . 2 . 2 3 . . . . . . Combat Hostiles 7 | . . . 2 . 2 3 . . . . . . Parts Melted 31 | . . 5 3 . 5 18 . . . . . . Heat Transferred 10228 | . 50 792 2923 999 3080 2384 . . . . . . Parts Sabotaged . | . . . . . . . . . . . . . Parts Stolen . | . . . . . . . . . . . . . Parts Stripped . | . . . . . . . . . . . . . Power Chain Reactions . | . . . . . . . . . . . . . Alert | -11 -10 -9 -8 -7 -6 -5 -5 -4 -3 -3 -2 -1 ------- Run | Yrd Mat Mat Mat Fac Fac Fac Ext Fac Res DSF Res Acc Maximum Alert Level . | . . . . . . . . . . . . . Low Security (%) 100 | 100 100 100 100 100 100 100 100 100 100 100 100 100 Level 1 . | . . . . . . . . . . . . . Level 2 . | . . . . . . . . . . . . . Level 3 . | . . . . . . . . . . . . . Level 4 . | . . . . . . . . . . . . . Level 5 . | . . . . . . . . . . . . . High Security . | . . . . . . . . . . . . . Max Security . | . . . . . . . . . . . . . Peak Influence 157 | . 57 38 157 56 134 120 15 32 10 20 8 142 Initial 21 | . . . . 21 . 10 11 . 6 . 8 . Average 28 | . 19 7 60 7 33 44 9 3 5 7 3 50 Influence Increases 2047 | . 57 130 311 138 523 463 4 68 6 20 . 327 Destroy 0b10 Robot/C 1080 | . 40 80 240 100 300 300 . . . 20 . . Destroy 0b10 Robot/NC 75 | . 5 15 15 5 10 15 . . . . . 10 Destroy Leader 270 | . 12 32 46 30 82 64 . . . . . 4 Successful Hack 43 | . . 2 10 . . . . 10 . . . 21 Disable Machine 56 | . . . . . 28 20 4 . . . . 4 Destroy Structure 238 | . . 1 . 3 73 34 . 28 6 . . 93 Partial Spotted 15 | . . . . . . 15 . . . . . . Lose Combat Pursuer 270 | . . . . . 30 15 . 30 . . . 195 Influence Decreases 1945 | . 57 130 245 204 492 462 36 51 21 2 20 225 Entered New Map 112 | . . . . 45 . 21 21 . 11 2 12 . Time Decay 1813 | . 57 130 245 159 482 441 15 51 10 . 8 215 Lost Part 20 | . . . . . 10 . . . . . . 10 Squads Dispatched 22 | . . . 3 4 4 5 . 1 . 1 . 4 Investigation 4 | . . . . . 1 1 . . . . . 2 Extermination 7 | . . . . 1 2 2 . 1 . . . 1 Reinforcement 9 | . . . 1 3 1 2 . . . 1 . 1 Assault . | . . . . . . . . . . . . . Garrison 2 | . . . 2 . . . . . . . . . Intercept . | . . . . . . . . . . . . . Searches Triggered . | . . . . . . . . . . . . . Construction Impeded . | . . . . . . . . . . . . . Haulers Reinforced 1 | . . . . . . 1 . . . . . . Active Scanning Responses . | . . . . . . . . . . . . . Cargo Convoy Interrupts 1 | . . . . 1 . . . . . . . . Stealth | -11 -10 -9 -8 -7 -6 -5 -5 -4 -3 -3 -2 -1 --------- Run | Yrd Mat Mat Mat Fac Fac Fac Ext Fac Res DSF Res Acc Distress Signals 6 | . 1 . 2 1 . 1 . . . . . 1 Communications Jammed . | . . . . . . . . . . . . . Distress Signals . | . . . . . . . . . . . . . Times Spotted 113 | . 3 9 22 11 18 16 4 5 2 3 . 20 Peak Tracking Total 10 | . 3 5 4 3 4 4 4 5 . 3 . 10 Tactical Retreats 7 | . . . . . 1 1 . 1 . . . 4 Traps | -11 -10 -9 -8 -7 -6 -5 -5 -4 -3 -3 -2 -1 ------- Run | Yrd Mat Mat Mat Fac Fac Fac Ext Fac Res DSF Res Acc Traps Triggered 1 | . . . . . . . . . . 1 . . Indirectly . | . . . . . . . . . . . . . Trap Hack Attempts . | . . . . . . . . . . . . . Triggered . | . . . . . . . . . . . . . Disarmed . | . . . . . . . . . . . . . Reprogrammed . | . . . . . . . . . . . . . Reused . | . . . . . . . . . . . . . Traps Extracted . | . . . . . . . . . . . . . Installed . | . . . . . . . . . . . . . Triggered . | . . . . . . . . . . . . . Machines | -11 -10 -9 -8 -7 -6 -5 -5 -4 -3 -3 -2 -1 ---------- Run | Yrd Mat Mat Mat Fac Fac Fac Ext Fac Res DSF Res Acc Machines Disabled 14 | . . . . . 7 5 1 . . . . 1 Max in Single Turn 5 | . . . . . 5 1 1 . . . . 1 Garrison Access 3 | . . . . 2 . . . . . . . 1 Machines Repaired . | . . . . . . . . . . . . . Machines Dismantled . | . . . . . . . . . . . . . Machines Sabotaged . | . . . . . . . . . . . . . Overloaded Fab Kills . | . . . . . . . . . . . . . Hacking | -11 -10 -9 -8 -7 -6 -5 -5 -4 -3 -3 -2 -1 --------- Run | Yrd Mat Mat Mat Fac Fac Fac Ext Fac Res DSF Res Acc Machines Accessed 24 | . . 3 2 4 2 3 1 3 1 . . 5 Terminals 19 | . . 3 2 2 1 3 1 2 1 . . 4 Fabricators 2 | . . . . . 1 . . 1 . . . . Repair Stations . | . . . . . . . . . . . . . Recycling Units . | . . . . . . . . . . . . . Scanalyzers . | . . . . . . . . . . . . . Garrison Access 3 | . . . . 2 . . . . . . . 1 Total Hacks 43 | . . 4 3 8 3 4 2 6 1 . . 12 Successful 14 | . . 3 1 2 1 1 1 2 1 . . 2 Failed 29 | . . 1 2 6 2 3 1 4 . . . 10 Catastrophic 8 | . . . 2 1 1 2 . . . . . 2 Database Lockouts . | . . . . . . . . . . . . . Manual 25 | . . 3 2 3 2 3 . 2 . . . 10 Terminals 35 | . . 4 3 3 2 4 2 5 1 . . 11 Fabricators 2 | . . . . . 1 . . 1 . . . . Repair Stations . | . . . . . . . . . . . . . Recycling Units . | . . . . . . . . . . . . . Scanalyzers . | . . . . . . . . . . . . . Garrison Access 6 | . . . . 5 . . . . . . . 1 Terminal Hacks 10 | . . 3 1 . . 1 1 2 1 . . 1 Robot Analysis 1 | . . 1 . . . . . . . . . . Prototype ID Bank 3 | . . . 1 . . . . 2 . . . . Open Door 3 | . . . . . . 1 1 . . . . 1 Open DSF 1 | . . . . . . . . . 1 . . . Level Access Points 1 | . . 1 . . . . . . . . . . Locate Traps 1 | . . 1 . . . . . . . . . . Fabricator Hacks 1 | . . . . . 1 . . . . . . . Build 1 | . . . . . 1 . . . . . . . Repair Station Hacks . | . . . . . . . . . . . . . Recycling Unit Hacks . | . . . . . . . . . . . . . Scanalyzer . | . . . . . . . . . . . . . Garrison Access Hacks 3 | . . . . 2 . . . . . . . 1 Seal Access 3 | . . . . 2 . . . . . . . 1 Unauthorized Hacks . | . . . . . . . . . . . . . Terminals . | . . . . . . . . . . . . . Fabricators . | . . . . . . . . . . . . . Repair Stations . | . . . . . . . . . . . . . Recycling Units . | . . . . . . . . . . . . . Scanalyzers . | . . . . . . . . . . . . . Garrison Access . | . . . . . . . . . . . . . Data Cores Recovered 1 | . . 1 . . . . . . . . . . Used . | . . . . . . . . . . . . . Hacking Detections 17 | . . 1 2 3 1 2 1 3 . . . 4 Full Trace Events 4 | . . . . . 1 1 . . . . . 2 Feedback Events . | . . . . . . . . . . . . . Feedback Blocked . | . . . . . . . . . . . . . Robot Schematics Acquired . | . . . . . . . . . . . . . Robots Built . | . . . . . . . . . . . . . Authchips . | . . . . . . . . . . . . . Time . | . . . . . . . . . . . . . Total Robot Build Rating . | . . . . . . . . . . . . . Part Schematics Acquired . | . . . . . . . . . . . . . Parts Built 2 | . . . . . 2 . . . . . . . Authchips . | . . . . . . . . . . . . . Time 64 | . . . . . 64 . . . . . . . Total Part Build Rating 16 | . . . . . 16 . . . . . . . Part Studies Acquired . | . . . . . . . . . . . . . Parts Repaired . | . . . . . . . . . . . . . Time . | . . . . . . . . . . . . . Parts Recycled . | . . . . . . . . . . . . . Recycled Matter . | . . . . . . . . . . . . . Retrieved Matter . | . . . . . . . . . . . . . Retrieved Components . | . . . . . . . . . . . . . Parts Scanalyzed . | . . . . . . . . . . . . . Part Schematics Acquired . | . . . . . . . . . . . . . Parts Damaged . | . . . . . . . . . . . . . Bothacking | -11 -10 -9 -8 -7 -6 -5 -5 -4 -3 -3 -2 -1 ------------ Run | Yrd Mat Mat Mat Fac Fac Fac Ext Fac Res DSF Res Acc Used RIF Installer . | . . . . . . . . . . . . . Robots Hacked . | . . . . . . . . . . . . . Non-combat . | . . . . . . . . . . . . . Combat . | . . . . . . . . . . . . . Robot Hacks Applied . | . . . . . . . . . . . . . Relay Couplers Released . | . . . . . . . . . . . . . Fabnet Peak Effective % . | . . . . . . . . . . . . . Robots Rewired . | . . . . . . . . . . . . . Allies Hacked . | . . . . . . . . . . . . . Hacks Repelled . | . . . . . . . . . . . . . Allies | -11 -10 -9 -8 -7 -6 -5 -5 -4 -3 -3 -2 -1 -------- Run | Yrd Mat Mat Mat Fac Fac Fac Ext Fac Res DSF Res Acc Total Allies . | . . . . . . . . . . . . . Largest Group . | . . . . . . . . . . . . . Highest-Rated Group . | . . . . . . . . . . . . . Highest-Rated Ally . | . . . . . . . . . . . . . Total Orders . | . . . . . . . . . . . . . Ally Attacks . | . . . . . . . . . . . . . Total Damage . | . . . . . . . . . . . . . Kills . | . . . . . . . . . . . . . Allies Corrupted . | . . . . . . . . . . . . . Allies Melted . | . . . . . . . . . . . . . Intel | -11 -10 -9 -8 -7 -6 -5 -5 -4 -3 -3 -2 -1 ------- Run | Yrd Mat Mat Mat Fac Fac Fac Ext Fac Res DSF Res Acc Active Infowar (turns) 755 | . . . . . 40 57 28 180 27 14 49 360 Optics 402 | . . . . . . . . . . . 42 360 Sensors 705 | . . . . . . 47 28 180 27 14 49 360 IFF 40 | . . . . . 40 . . . . . . . T.N.C. 159 | . . . . . . 41 28 90 . . . . Cloaking 714 | . . . . . . 56 28 180 27 14 49 360 ECM 2 | . . . . . . 2 . . . . . . Robot Analysis Total 1 | . . 1 . . . . . . . . . . Derelict Logs Recovered . | . . . . . . . . . . . . . Drone Launches . | . . . . . . . . . . . . . Drone Recoveries . | . . . . . . . . . . . . . Exploration | -11 -10 -9 -8 -7 -6 -5 -5 -4 -3 -3 -2 -1 ------------- Run | Yrd Mat Mat Mat Fac Fac Fac Ext Fac Res DSF Res Acc Turns Passed 4367 | 88 132 531 426 776 1062 694 28 180 27 14 49 360 Spaces Moved 3711 | 54 99 245 181 487 609 533 104 490 55 44 145 665 Core 3 | 3 . . . . . . . . . . . . Treads 25 | 25 . . . . . . . . . . . . Legs 2036 | 26 99 245 181 487 609 389 . . . . . . Wheels . | . . . . . . . . . . . . . Hover . | . . . . . . . . . . . . . Flight 1647 | . . . . . . 144 104 490 55 44 145 665 Fastest Speed 17 | 50 120 120 120 120 122 24 24 21 24 24 17 17 Average Speed 80 | 134 120 170 135 120 122 91 24 23 24 24 17 21 Slowest Speed 190 | 160 120 190 190 122 122 122 24 24 24 24 17 29 Overloaded Moves . | . . . . . . . . . . . . . Propulsion Burnouts . | . . . . . . . . . . . . . Robots Hopped 5 | . . . . . . 2 . . . . 3 . Potential Cave-ins 3 | . . . . . . 3 . . . . . . Cave-ins Triggered . | . . . . . . . . . . . . . Exploration Rate (%) 18 | 3 25 31 26 16 17 16 23 14 1 44 5 24 Regions Visited 12 Branch Regions 1 Pre-discovered Areas . | . . . . . . . . . . . . . Known Exits Taken 11 | 1 1 1 1 1 1 1 1 1 1 . 1 . Unknown Exits Taken . | . . . . . . . . . . . . . Scrap Searched . | . . . . . . . . . . . . . Spaces Dug 59 | . . . . . . 11 . 14 3 . . 31 Terrain Destroyed 173 | . . . . 2 102 21 . 14 3 . . 31 Melee 51 | . . . . . . 3 . 14 3 . . 31 Projectile 29 | . . . . 2 9 18 . . . . . . AOE 93 | . . . . . 93 . . . . . . . Terrain Rammed . | . . . . . . . . . . . . . Walls Destroyed . | . . . . . . . . . . . . . Machines Disabled . | . . . . . . . . . . . . . Actions | -11 -10 -9 -8 -7 -6 -5 -5 -4 -3 -3 -2 -1 --------- Run | Yrd Mat Mat Mat Fac Fac Fac Ext Fac Res DSF Res Acc Total 4607 | 65 106 315 268 646 847 650 104 524 61 44 164 813 Wait 501 | . . 37 33 119 166 18 . 12 1 . 18 97 Move 3688 | 53 98 244 180 486 608 528 103 489 54 43 138 664 Hop 5 | . . . . . . 2 . . . . 3 . Pick Up 27 | 3 4 5 1 4 5 . . 2 1 . . 2 Fast Attach 30 | 7 . 2 2 2 4 7 . 1 . . 1 4 Attach 12 | . 1 . . . . 7 . . 2 . 2 . Detach 8 | . . . . . . 8 . . . . . . Swap 49 | 2 . 4 4 9 11 9 . 4 . . 2 4 Drop 57 | . . 2 2 10 12 22 . 1 . . . 8 Fire 171 | . 3 21 46 16 41 44 . . . . . . Melee 59 | . . . . . . 5 1 15 3 1 . 34 Ram . | . . . . . . . . . . . . . Kick . | . . . . . . . . . . . . . Crush . | . . . . . . . . . . . . . Escape Stasis . | . . . . . . . . . . . . . Rewire . | . . . . . . . . . . . . . Trap . | . . . . . . . . . . . . . Miscellaneous . | . . . . . . . . . . . . . Route ------- -11/Scrapyard -10/Materials -9/Materials (discovered 3 exits: *Mat x3) -8/Materials -7/Factory (discovered 2 exits: *Fac / *Low) -6/Factory -5/Factory -5/Extension -4/Factory (discovered 2 exits: *Res / *Upp) -3/Research -3/DSF -2/Research -1/Access To Epsilon Eridani History --------- Turn | Location | Event 9 | -11/Scrapyard | Identified exit to Materials 9 | -11/Scrapyard | Discovered exit to Materials (range 15) 89 | -11/Scrapyard | Entered Materials 89 | -10/Materials | Evolved 1 slot: Utility x1 197 | -10/Materials | Identified exit to Materials 197 | -10/Materials | Discovered exit to Materials (range 4) 221 | -10/Materials | Entered another Materials area 221 | -9/Materials | Evolved 2 slots: Utility x2 312 | -9/Materials | Build established: Hacker-Mutant 455 | -9/Materials | Identified exit to Materials 752 | -9/Materials | Entered another Materials area 752 | -8/Materials | Evolved 2 slots: Propulsion x2 988 | -8/Materials | Garrison activated, responded to threat 1120 | -8/Materials | Identified exit to Factory 1120 | -8/Materials | Discovered exit to Factory (range 16) 1178 | -8/Materials | Entered Factory 1178 | -7/Factory | Evolved 2 slots: Utility x2 1581 | -7/Factory | Identified exit to Lower Caves 1581 | -7/Factory | Discovered exit to Lower Caves (range 14) 1766 | -7/Factory | Cargo convoy interrupted 1923 | -7/Factory | Identified exit to Factory 1923 | -7/Factory | Discovered exit to Factory (range 8) 1954 | -7/Factory | Entered another Factory area 1954 | -6/Factory | Evolved 2 slots: Propulsion x1, Utility x1 2205 | -6/Factory | Fabricated Enh. Force Lance (x2) 2995 | -6/Factory | Identified exit to Factory 2995 | -6/Factory | Discovered exit to Factory (range 8) 3016 | -6/Factory | Entered another Factory area 3016 | -5/Factory | Evolved 2 slots: Power x1, Propulsion x1 3299 | -5/Factory | Spotted B-75 Beast 3315 | -5/Factory | Destroyed B-75 Beast 3700 | -5/Factory | Identified exit to Extension 3700 | -5/Factory | Discovered exit to Extension (range 6) 3710 | -5/Factory | Entered Extension 3718 | -5/Extension | Disrupted transfer network 3733 | -5/Extension | Spotted B-75 Beast 3735 | -5/Extension | Spotted B-75 Beast 3738 | -5/Extension | Identified exit to Factory 3738 | -5/Extension | Discovered exit to Factory (range 3) 3738 | -5/Extension | Entered Factory 3738 | -4/Factory | Evolved 2 slots: Propulsion x2 3888 | -4/Factory | Identified exit to Upper Caves 3888 | -4/Factory | Discovered exit to Upper Caves (range 13) 3900 | -4/Factory | Identified exit to Research 3900 | -4/Factory | Discovered exit to Research (range 16) 3918 | -4/Factory | Entered Research 3918 | -3/Research | Evolved 2 slots: Power x1, Utility x1 3924 | -3/Research | Found Gamma Bomb Array 3944 | -3/Research | Identified exit to DSF 3945 | -3/Research | Entered DSF 3950 | -3/DSF | Identified exit to Research 3950 | -3/DSF | Discovered exit to Research (range 12) 3959 | -3/DSF | Entered Research 3959 | -2/Research | Evolved 2 slots: Propulsion x2 3968 | -2/Research | Identified exit to Access 3968 | -2/Research | Discovered exit to Access (range 22) 4008 | -2/Research | Entered Access 4008 | -1/Access | Evolved 2 slots: Power x1, Utility x1 4268 | -1/Access | Build established: Hacker-Ninja 4316 | -1/Access | Identified exit to Surface 4316 | -1/Access | Discovered exit to Surface (range 6) 4368 | *** | Escaped! Last Messages --------------- 04264_ Adv. Signal Interpreter tumbles out of TF Node. 04268_ Dropped Imp. Sensor Array. 04270_ Discarded Imp. Signal Interpreter. 04315_ Connecting with Terminal... >>Open(Door) Sealed Barrier opened. 04316_ The Access Shell folds into the floor. 04316_ EXIT=FOUND: SURFACE 04321_ Connecting with Terminal... 04332_ K-01 Serf cleans the Wave Collapse Detector. 04346_ Connecting with Terminal... 04346_ ALERT: Suspicious activity at Terminal A008. Dispatching Investigation squad. 04348_ Terminal disabled. 04352_ K-01 Serf collects debris. 04359_ Slug penetrates Wall. 04364_ Field Propulsion Drive destroyed. 04365_ Overheating: Energy bleed (-125). 04368_ Nuclear Pulse Thruster broken. 04368_ Overheating: Short circuit. Map ----- +----------------------------------------------------+ | ###########"#????# #????????????# #???????? | | ???# #????# #????????????? ????????? | | ???# #????# #????????????? " ????????? | | ???# #?#### #????????????? ????????? | | ???# " ###"##+##+##?????????????# #????????? | | ???# """ # #??????????????# #????????? | | ???# """ # #??????????????# #????????? | | ???# " # #??????????????# #????????? | | ???# + #??????????????# #????????? | | ???# #"#########??????????????# #????????? | | ########+#####"####################### ########## | | | | ^ | | #######+############ ""#####+############# | | ????????????????????# ""#?? ????????? | | ????????????????????# ""#?# ????? | | ????????????????????# T#?# "" #? | | ????????????????????# ""#?# """ ## | | ????????????????????# ""#?# "R ## | | ???????????????????## ""### """ ## | | ???????????????????# ## """ ##[ ] | | ???????????????????## ### ## | | ????????????????????# #?# ######## | | ????????????????????# #?##########??????? | | ????????????????????# #?????????????????? | | ????????????????????# @" #?????????????????? | | ????????????????????# "" #?????????????????? | | ????????????????????# #?????????????????? | | ????????????????????# #?????????????????? | | ????????????????????# #?????????????????? | | ????????????????????#""""""""""#?????????????????? | | ?????????????????????????????????????????????????? | | ?????????????????????????????????????????????????? | | ?????????????????????????????????????????????????? | | ?????????????????????????????????????????????????? | | ??????????????????????BB????BB???????????????????? | | ??????????????????????BB????BB???????????????????? | | ?????????????????????????????????????????????????? | | ?????????????????????????????????????????????????? | | ?????????????????????????????????????????????????? | | ?????????????????????????????????????????????????? | | ?????????????????????????????????????????????????? | | ?????????????????????????????????????????????????? | | ?????????????????????????????????????????????????? | | ?????????????????????????????????????????????????? | | ?????????????????????????????????????????????????? | | ?????????????????????????????????????????????????? | | ?????????????????????????????????????????????????? | | ?????????????????????????????????????????????????? | | ?????????????????????????????????????????????????? | +----------------------------------------------------+ Best States ------------- Heat Dissipation 100 Energy Generation 61 Energy Capacity 500 Matter Stores 300 Matter Capacity 300 Sight Range 23 Robot Scan Range 16 Terrain Scan Density 10 Cloak Strength 2 Additional Mass Support 16 Armor Coverage 225 Resistance: KI 35 Resistance: TH 35 Resistance: EX 35 Resistance: EM 50 Resistance: I 35 Resistance: S 35 Resistance: P 35 Evasion (%) 70 Targeting Accuracy 10 Melee Accuracy 8 Recoil Reduction 2 Energy Filtering 30 Offensive Hacking 20 Defensive Hacking 12 Item Schematics ----------------- None Robot Schematics ------------------ None Fabricated ------------ Enh. Force Lance | x2 | -6/Factory | Preloaded Repaired ---------- Nothing Studied --------- None Alien Tech Used ----------------- None Achievements -------------- None Challenges ------------ None Game ------ Seed VariableTerrorStreamer Manual? 0 Play Time 00:51:24 Cumulative 181.3 hours Start 2026.02.28 @ 10:36:42 End 2026.02.28 @ 11:28:23 Sessions 1 Manual Loads 0 Difficulty Explorer Special Mode None Game No. 332 Rogue 216 Adventurer 15 Explorer 101 Win Type 0 Total 15 Types 15/0/0/0/0/0/0/0/0/0 Lore% 56 Gallery% 60 Achievement% 47 Wizard Run 0 Options --------- Layout 0 ASCII 0 Keyboard 1 Movement Numpad Keybinds 0 Fullscreen 2 Font 18/SmallcapsGlow Map View 76x50 Zoom Use 0% Tactical HUD 1 Map Filters NONE Filters NONE Steam 1 RUN: 007174eb-2a2f-40bd-b0da-baa73be0de5b